Cogmind - Beta 17 @@@ ROGUE MODE // 2026.06.28 @ 01:35:43 Player: LN-5RVR Result: Destroyed by as-67797 with Assembled Blade Performance ------------- Evolutions (0) 0 Regions Visited (2) 400 Robots Destroyed (4) 20 Value Destroyed (162) 162 Prototype IDs (0) 0 Alien Tech Used (0) 0 Bonus (0) 0 TOTAL SCORE: 582 Bonus ------- None Cogmind --------- Core Integrity 0/250 Matter 300/300 Energy 90/100 System Corruption 0% Temperature Cool (0) Movement Treading (160) Location -10/Mines Parts ------- > --- POWER (1) -------- (None) > --- PROPULSION (2) --- Light Treads > --- UTILITY (2) ------ Small Storage Unit > --- WEAPON (2) ------- Katana Scythe > --- INVENTORY (8) ---- Light Ion Engine Wheel Wheel EM Pulse Gun Light Assault Rifle Mining Claw Peak State ------------ > --- POWER ------------ Ion Engine > --- PROPULSION ------- Light Treads Light Treads > --- UTILITY ---------- Small Storage Unit Propulsion Shielding > --- WEAPON ----------- Katana Scythe > --- INVENTORY -------- Light Ion Engine Wheel Wheel EM Pulse Gun Light Assault Rifle Mining Claw [Rating: 11] Favorites ----------- Power Ion Engine Engine Ion Engine Propulsion Light Treads Treads Light Treads Utility Small Storage Unit Storage Small Storage Unit Protection Propulsion Shielding Weapon Light Assault Rifle Energy Gun EM Pulse Gun Ballistic Gun Light Assault Rifle Slashing Weapon Katana Build | -11 -10 -10 ------- Run | Yrd Mat Min Slots Evolved . | . . . Power . | . . . Propulsion . | . . . Utility . | . . . Weapon . | . . . Parts Attached 9 | 6 1 2 Power 1 | 1 . . Engine 1 | 1 . . Core . | . . . Reactor . | . . . Propulsion 2 | 2 . . Treads 2 | 2 . . Leg . | . . . Wheel . | . . . Hover . | . . . Flight . | . . . Utility 2 | 1 1 . Device . | . . . Storage 1 | 1 . . Processor . | . . . Hackware . | . . . Protection 1 | . 1 . Artifact . | . . . Weapon 4 | 2 . 2 Energy Gun 1 | 1 . . Energy Cannon . | . . . Ballistic Gun 1 | 1 . . Ballistic Cannon . | . . . Launcher . | . . . Special Weapon . | . . . Impact Weapon . | . . . Slashing Weapon 2 | . . 2 Piercing Weapon . | . . . Special Melee Weapon . | . . . Unidentified Prototypes . | . . . Parts Lost 3 | . . 3 Power 1 | . . 1 Propulsion 1 | . . 1 Utility 1 | . . 1 Weapon . | . . . Highest Loss Streak 3 | . . 3 To Critical Strikes . | . . . Average Backups 3 | 1 3 4 Power . | . 1 1 Propulsion 1 | . 2 2 Utility . | . . . Weapon 1 | . . 1 Tool/Special . | . . . Unused Backups 4 | . . 4 Power 1 | . . 1 Propulsion 2 | . . 2 Utility . | . . . Weapon 1 | . . 1 Tool/Special . | . . . Average Slot Usage (%) 94 | . 91 96 Engine 13 | . 14 13 Treads 27 | . 28 27 Storage 14 | . 14 14 Protection 9 | . 5 12 Energy Gun 10 | . 14 8 Ballistic Gun 10 | . 14 8 Slashing Weapon 6 | . . 11 Peak Build Rating 11 | 6 7 11 Average Rating 7 | 4 6 8 On Entrance 4 | . 6 7 Avg Prop Armor Cover (%) . | . . . Naked Turns . | . . . Heaviest Build 15 | 13 14 15 Greatest Support 40 | 40 40 40 Greatest Overweight (x) . | . . . Average Overweight (x) . | . . . Largest Inventory Capacity 8 | 8 8 8 Average Capacity 7 | 6 8 8 Most Carried 6 | 3 4 6 Average Carried 3 | 1 3 4 Final Capacity 8 | 8 8 8 Final Carried 6 | 3 4 6 Class Distribution -------------------- 100% | Mutant Dominant Class ---------------- Mutant | -10/Materials Mutant | -10/Mines Resources | -11 -10 -10 ----------- Run | Yrd Mat Min Matter Collected 292 | 105 . 187 Remotely . | . . . Salvage Created 268 | . . 268 Parts 10 | . . 10 Haulers Intercepted . | . . . Recyclers Shooed . | . . . Parts Field Recycled . | . . . Retrieved Matter . | . . . Parts Self-Destructed . | . . . Prevented . | . . . Parts Restored . | . . . Kills | -11 -10 -10 ------- Run | Yrd Mat Min Combat Hostiles Destroyed 10 | . . 10 Melee 6 | . . 6 Guns 3 | . . 3 AOE 1 | . . 1 Classes Destroyed 2 | . . 2 Grunt 4 | . . 4 Assembled 6 | . . 6 Best Kill Streak 4 | . . 4 Combat Bots Only 4 | . . 4 Max Kills in Single Turn 1 | . . 1 Gunslinging . | . . . Exploded 1 | . . 1 Melee 1 | . . 1 Uniques/NPCs Destroyed . | . . . Combat | -11 -10 -10 -------- Run | Yrd Mat Min Hostile Shots Fired 85 | . . 85 Missed 26 | . . 26 Hits 59 | . . 59 Melee 2 | . . 2 Projectile 57 | . . 57 Critical Strikes 3 | . . 3 Part Disruptions 1 | . . 1 Actively Blocked 1 | . . 1 Damage Taken 860 | . . 860 Core 281 | . . 281 Absorbed by Shields . | . . . Redirected to Shielding 52 | . . 52 Core Remaining (%) 100 | 100 . . Volleys Fired 12 | . . 12 Largest 2 | . . 2 Hottest 60 | . . 60 Shots Fired 24 | . . 24 Gun 24 | . . 24 Cannon . | . . . Launcher . | . . . Special . | . . . Kinetic 12 | . . 12 Thermal . | . . . Explosive . | . . . Electromagnetic 12 | . . 12 Robot Hit Streak 7 | . . 7 Robot Miss Streak 1 | . . 1 Penetration Max . | . . . Secondary Targets 1 | . . 1 Max Gunslinging Chain 1 | . . 1 Shots Hit Robots 28 | . . 28 Core Hits 14 | . . 14 Critical Kills . | . . . Critical Parts Destroyed 1 | . . 1 Critical Strikes 2 | . . 2 Destroy 1 | . . 1 Corrupt 1 | . . 1 Melee Attacks 19 | . . 19 Impact . | . . . Slashing 19 | . . 19 Piercing . | . . . Sneak Attacks . | . . . Combat Hostiles . | . . . Follow-up Attacks 5 | . . 5 Damage Inflicted 617 | . . 617 Guns 199 | . . 199 Cannons . | . . . Explosions 32 | . . 32 Melee 386 | . . 386 Ramming . | . . . Kinetic 46 | . . 46 Thermal 32 | . . 32 Explosive . | . . . Electromagnetic 153 | . . 153 Impact . | . . . Slashing 386 | . . 386 Piercing . | . . . Highest Corruption . | . . . Average Corruption . | . . . Corruption Purged . | . . . Corruption Blocked . | . . . Overload Shots . | . . . Overflow Damage 39 | . . 39 Projectiles . | . . . Explosions . | . . . Melee 39 | . . 39 Knockbacks . | . . . Impact . | . . . Kinetic . | . . . Secondary . | . . . Self-Inflicted Damage 51 | . . 51 Shots 1 | . . 1 Rammed . | . . . Targets Rammed . | . . . Kicked . | . . . Crushed . | . . . Highest Temperature 112 | . . 112 Average Temperature 62 | . . 62 Received Heat Transfer 184 | . . 184 Siege Activations . | . . . Martial Activations . | . . . Shielding Activations . | . . . Robots Disrupted . | . . . Combat Hostiles . | . . . Robots Corrupted . | . . . Combat Hostiles . | . . . Parts Fried . | . . . Impact Corruptions . | . . . Robots Melted . | . . . Combat Hostiles . | . . . Parts Melted . | . . . Heat Transferred 50 | . . 50 Parts Sabotaged . | . . . Parts Stolen . | . . . Parts Stripped . | . . . Power Chain Reactions 1 | . . 1 Alert | -11 -10 -10 ------- Run | Yrd Mat Min Maximum Alert Level . | . . . Low Security (%) 100 | 100 100 100 Level 1 . | . . . Level 2 . | . . . Level 3 . | . . . Level 4 . | . . . Level 5 . | . . . High Security . | . . . Max Security . | . . . Peak Influence 58 | . . 58 Initial . | . . . Average 12 | . . 22 Influence Increases 108 | . . 108 Destroy 0b10 Robot/C 80 | . . 80 Destroy Leader 20 | . . 20 Destroy Structure 8 | . . 8 Influence Decreases 108 | . . 108 Time Decay 108 | . . 108 Squads Dispatched 1 | . . 1 Investigation 1 | . . 1 Extermination . | . . . Reinforcement . | . . . Assault . | . . . Garrison . | . . . Intercept . | . . . Searches Triggered . | . . . Construction Impeded . | . . . Haulers Reinforced . | . . . Active Scanning Responses . | . . . Cargo Convoy Interrupts . | . . . Stealth | -11 -10 -10 --------- Run | Yrd Mat Min Distress Signals . | . . . Communications Jammed . | . . . Distress Signals . | . . . Times Spotted 14 | . . 14 Peak Tracking Total 5 | . . 5 Tactical Retreats 1 | . . 1 Traps | -11 -10 -10 ------- Run | Yrd Mat Min Traps Triggered . | . . . Indirectly . | . . . Trap Hack Attempts . | . . . Triggered . | . . . Disarmed . | . . . Reprogrammed . | . . . Reused . | . . . Traps Extracted . | . . . Installed . | . . . Triggered . | . . . Machines | -11 -10 -10 ---------- Run | Yrd Mat Min Machines Disabled . | . . . Max in Single Turn . | . . . Machines Repaired . | . . . Machines Dismantled . | . . . Machines Sabotaged . | . . . Overloaded Fab Kills . | . . . Hacking | -11 -10 -10 --------- Run | Yrd Mat Min Machines Accessed 1 | . . 1 Terminals . | . . . Fabricators . | . . . Repair Stations . | . . . Recycling Units . | . . . Scanalyzers . | . . . Garrison Access . | . . . Total Hacks 1 | . . 1 Successful 1 | . . 1 Failed . | . . . Catastrophic . | . . . Database Lockouts . | . . . Manual . | . . . Terminals . | . . . Fabricators . | . . . Repair Stations . | . . . Recycling Units . | . . . Scanalyzers . | . . . Garrison Access . | . . . Terminal Hacks 1 | . . 1 Open Door 1 | . . 1 Fabricator Hacks . | . . . Repair Station Hacks . | . . . Recycling Unit Hacks . | . . . Scanalyzer . | . . . Garrison Access Hacks . | . . . Unauthorized Hacks . | . . . Terminals . | . . . Fabricators . | . . . Repair Stations . | . . . Recycling Units . | . . . Scanalyzers . | . . . Garrison Access . | . . . Data Cores Recovered . | . . . Used . | . . . Hacking Detections . | . . . Full Trace Events . | . . . Feedback Events . | . . . Feedback Blocked . | . . . Robot Schematics Acquired . | . . . Robots Built . | . . . Authchips . | . . . Time . | . . . Total Robot Build Rating . | . . . Part Schematics Acquired . | . . . Parts Built . | . . . Authchips . | . . . Time . | . . . Total Part Build Rating . | . . . Part Studies Acquired . | . . . Parts Repaired . | . . . Time . | . . . Parts Recycled . | . . . Recycled Matter . | . . . Retrieved Matter . | . . . Retrieved Components . | . . . Parts Scanalyzed . | . . . Part Schematics Acquired . | . . . Parts Damaged . | . . . Bothacking | -11 -10 -10 ------------ Run | Yrd Mat Min Used RIF Installer . | . . . Robots Hacked . | . . . Non-combat . | . . . Combat . | . . . Robot Hacks Applied . | . . . Relay Couplers Released . | . . . Fabnet Peak Effective % . | . . . Robots Rewired . | . . . Allies Hacked . | . . . Hacks Repelled . | . . . Allies | -11 -10 -10 -------- Run | Yrd Mat Min Total Allies . | . . . Largest Group . | . . . Highest-Rated Group . | . . . Highest-Rated Ally . | . . . Total Orders . | . . . Ally Attacks . | . . . Total Damage . | . . . Kills . | . . . Allies Corrupted . | . . . Allies Melted . | . . . Intel | -11 -10 -10 ------- Run | Yrd Mat Min Active Infowar (turns) . | . . . Robot Analysis Total . | . . . Derelict Logs Recovered 1 | . . 1 Drone Launches . | . . . Drone Recoveries . | . . . Exploration | -11 -10 -10 ------------- Run | Yrd Mat Min Turns Passed 497 | 63 158 276 Spaces Moved 254 | 36 98 120 Core 5 | 5 . . Treads 249 | 31 98 120 Legs . | . . . Wheels . | . . . Hover . | . . . Flight . | . . . Fastest Speed 50 | 50 160 160 Average Speed 157 | 144 160 160 Slowest Speed 160 | 160 160 160 Overloaded Moves . | . . . Propulsion Burnouts . | . . . Robots Hopped . | . . . Potential Cave-ins . | . . . Cave-ins Triggered . | . . . Exploration Rate (%) 20 | 3 22 35 Regions Visited 2 Branch Regions 1 Pre-discovered Areas . | . . . Known Exits Taken . | . . . Unknown Exits Taken 2 | 1 1 . Scrap Searched . | . . . Spaces Dug . | . . . Terrain Destroyed 8 | . . 8 Melee . | . . . Projectile . | . . . AOE 8 | . . 8 Terrain Rammed . | . . . Walls Destroyed . | . . . Machines Disabled . | . . . Actions | -11 -10 -10 --------- Run | Yrd Mat Min Total 304 | 44 99 161 Wait 11 | . . 11 Move 252 | 35 97 120 Hop . | . . . Pick Up 6 | 3 1 2 Fast Attach 7 | 6 1 . Attach . | . . . Detach . | . . . Swap 2 | . . 2 Drop . | . . . Fire 12 | . . 12 Melee 14 | . . 14 Ram . | . . . Kick . | . . . Crush . | . . . Escape Stasis . | . . . Rewire . | . . . Trap . | . . . Miscellaneous . | . . . Route ------- -11/Scrapyard -10/Materials -10/Mines History --------- Turn | Location | Event 12 | -11/Scrapyard | Discovered new exit (range 16) 64 | -11/Scrapyard | Entered Materials 90 | -10/Materials | Discovered new exit (range 15) 222 | -10/Materials | Entered Mines 300 | -10/Mines | Learned Materials stockpile data 313 | -10/Mines | Build established: Mutant 366 | -10/Mines | Met a Derelict shopkeep closing up shop 400 | -10/Mines | Assembled infested the area 405 | -10/Mines | Assisted by a Guerilla fighting off Assembled 474 | -10/Mines | Core integrity fell below 50% 490 | -10/Mines | Core integrity fell below 20% 498 | -10/Mines | Destroyed by as-67797 with Assembled Blade Last Messages --------------- 00429_ K-01 Serf collects debris. 00432_ as-64457 destroyed. 00433_ K-01 Serf collects debris. 00443_ as-80033 destroyed. 00445_ Acquired 16 matter. 00448_ as-22002 destroyed. 00448_ Katana follow-up attack on as-22433. 00451_ Acquired 13 matter. 00461_ Katana follow-up attack on as-22433. 00461_ Destroyed Asb. Hover Unit. 00461_ as-22433 destroyed. 00463_ Propulsion Shielding destroyed. 00477_ Lgt. Treads destroyed. 00483_ Katana follow-up attack on as-69431. 00483_ as-69431 destroyed. 00486_ Acquired 13 matter. 00489_ Ion Engine destroyed. 00492_ Katana follow-up attack on as-34727. 00498_ as-09487 destroyed. 00498_ Katana follow-up attack on as-67797. Map ----- +----------------------------------------------------+ | | | | | | | | | | | | | | | | | | | | | | | | | ??????????????????????????????????????????? | | ??????????????????????????????????????????? | | ??????????????????????###?????????????????? | | ?????????????????????# ##??##????????????? | | ????????????????????? ## ????????????? | | ????????????????????? ???????????? | | ???????????????????## ????????????? | | ??????????????????## ???????? ?????? | | ?????????????????## ?????????? ?????? | | ??????????????#### ???????????? #????? | | ?????????????## #????????????? #????? | | ?????????????# % #?????????????? #????? | | ??????????????# %a ##????????????? #????? | | ??????????????#*= @ ##???????????? #????? | | ??????????????#%%a #??########## ?????? | | ?????????????#=! ## #??#""""""# ?????? | | ???????????# a #?# #??#!!!] # #?????? | | ?????????# ##??# ##?## ## #????#? | | ????????# #????# ##?#! !## #??? ?? | | ???????# ?????## #### ### ##? #?? | | ?????? a ???????## # X ## ##? | | ????? ###?????????## ## | | ????? ??????????????# k != # | | ????? ???????????????# = | | ?????????????????????# ### | | ?????????????????????# ##?#### | | ?????????????????????## ##???? | | ??????????????????????##### ##### | | ??????????????????????????###### | | ???????????????????????????????# ##### | | ???????????????????????????????# % ##???? | | ???????????????????????????????# ####????? | | ???????????????????????????????# #???????? | | ???????????????????????????????# ########? | | ??????????????????????????????? ##"""""#? | | ??????????????????????????????# ####" #? | | ??????????????????????????????# ???#" %[ #? | | ??????????????????????????????# ???#" #? | +----------------------------------------------------+ Best States ------------- Heat Dissipation 25 Energy Generation 10 Energy Capacity 250 Matter Stores 300 Matter Capacity 300 Sight Range 16 Terrain Scan Density 10 Propulsion Shielding 33 Evasion (%) 40 Recoil Reduction 2 Item Schematics ----------------- None Robot Schematics ------------------ None Fabricated ------------ Nothing Repaired ---------- Nothing Studied --------- None Alien Tech Used ----------------- None Achievements -------------- None Challenges ------------ None Game ------ Seed ContainmentTechAccelerator Manual? 0 Play Time 00:07:36 Cumulative 45.6 hours Start 2026.06.28 @ 01:25:01 End 2026.06.28 @ 01:35:43 Sessions 1 Manual Loads 0 Difficulty Rogue Special Mode None Game No. 63 Rogue 31 Adventurer 32 Explorer 0 Win Type - Total 0 Types 0/0/0/0/0/0/0/0/0/0 Lore% 16 Gallery% 23 Achievement% 18 Wizard Run 0 Options --------- Layout 1 ASCII 0 Keyboard 0 Movement Numpad Keybinds 0 Fullscreen 1 Font 24/Smallcaps Map View 50x35 Zoom Use 0% Tactical HUD 1 Map Filters NONE Filters NONE Steam 1 RUN: 12b076eb-875f-456e-96fd-83fe6191e863